fUST/lending_fUST_20250617
["ID","MTS","AMOUNT","RATE_DAILY","PERIOD"]
[366264781,1750165849201,-447.66876492,0.00024164,6]
[366264782,1750165849211,-2895.33,0.00024164,6]
[366264783,1750165849221,-460.0,0.00024164,6]
[366264784,1750165849231,-2033.31,0.00024164,6]
[366264785,1750165849241,-5921.4,0.00024164,6]
[366264786,1750165849250,-887.03,0.00024164,6]
[366264787,1750165849259,-4551.35,0.00024164,6]
[366264788,1750165849269,-503.91,0.00024164,6]
[366264789,1750165849278,-1365.39,0.00024164,6]
[366264790,1750165849287,-754.37,0.00024164,6]
[366264791,1750165849297,-460.0,0.00024164,6]
[366264792,1750165849307,-401.4248753,0.00024164,6]
[366264793,1750165849316,-170.84100457,0.00024164,6]
[366264794,1750165849326,-600.7370068,0.00024164,6]
[366264795,1750165849335,-608.13,0.00024164,6]
[366264796,1750165849345,-460.0,0.00024164,6]
[366264797,1750165849354,-460.0,0.00024164,6]
[366264798,1750165849364,-4372.84,0.00024164,6]
[366264799,1750165849374,-1021.85,0.00024164,6]
[366264800,1750165849383,-1222.5,0.00024164,6]
[366264801,1750165849393,-460.0,0.00024164,6]
[366264802,1750165849402,-460.0,0.00024164,6]
[366264803,1750165849411,-460.0,0.00024164,6]
[366264804,1750165849421,-1471.68,0.00024164,2]
[366264805,1750165849430,-460.0,0.00024164,6]
[366264806,1750165849439,-6383.11,0.00024164,6]
[366264807,1750165849448,-2221.85,0.00024164,6]
[366264808,1750165849458,-151.66546,0.00024164,7]
[366264809,1750165849468,-3000.0,0.0002417,2]
[366264810,1750165849477,-151.0,0.0002417,7]
[366264811,1750165849487,-151.0,0.0002417,7]
[366264812,1750165849496,-500.0,0.00024173,2]
[366264813,1750165849506,-500.0,0.00024173,2]
[366264814,1750165849515,-500.0,0.00024173,2]
[366264815,1750165849524,-500.0,0.00024173,2]
[366264816,1750165849535,-500.0,0.00024173,2]
[366264817,1750165849545,-500.0,0.00024173,2]
[366264818,1750165849554,-500.0,0.00024173,2]
[366264819,1750165849564,-500.0,0.00024173,2]
[366264820,1750165849573,-500.0,0.00024173,2]
[366264821,1750165849583,-500.0,0.00024173,2]
[366264822,1750165849593,-500.0,0.00024173,2]
[366264823,1750165849602,-498.04715103,0.00024173,2]
[366264824,1750165849611,-500.0,0.00024173,2]
[366264825,1750165849621,-500.0,0.00024173,2]
[366264826,1750165849631,-500.49256119,0.00024173,2]
[366264827,1750165849641,-297.45975151,0.00024173,2]
[366264828,1750165849650,-500.0,0.00024173,2]
[366264829,1750165849660,-500.0,0.00024173,2]
[366264830,1750165849669,-500.0,0.00024173,2]
[366264831,1750165849679,-500.0,0.00024173,2]
[366264832,1750165849688,-261.05356942,0.00024173,2]
[366264833,1750165849698,-500.0,0.00024173,2]
[366264834,1750165849707,-500.0,0.00024173,2]
[366264835,1750165849716,-500.0,0.00024173,2]
[366264836,1750165849726,-500.0,0.00024173,2]
[366264837,1750165849735,-500.0,0.00024173,2]
[366264838,1750165849745,-500.0,0.00024173,2]
[366264839,1750165849754,-500.0,0.00024173,2]
[366264840,1750165849764,-505.82268164,0.00024173,2]
[366264841,1750165849773,-500.0,0.00024173,2]
[366264842,1750165849783,-500.0,0.00024173,2]
[366264843,1750165849792,-500.0,0.00024173,2]
[366264844,1750165849801,-348.85977752,0.00024173,2]
[366264845,1750165849811,-500.0,0.00024173,2]
[366264846,1750165849820,-500.0,0.00024173,2]
[366264847,1750165849831,-500.0,0.00024173,2]
[366264848,1750165849840,-520.83161428,0.00024173,2]
[366264849,1750165849849,-500.0,0.00024173,2]
[366264850,1750165849858,-500.0,0.00024173,2]
[366264851,1750165849868,-500.0,0.00024173,2]
[366264852,1750165849877,-500.0,0.00024173,2]
[366264853,1750165849973,-500.0,0.00024173,2]
[366264854,1750165849996,-500.0,0.00024173,2]
[366264855,1750165850006,-500.0,0.00024173,2]
[366264856,1750165850016,-500.0,0.00024173,2]
[366264857,1750165850025,-500.0,0.00024173,2]
[366264858,1750165850035,-500.0,0.00024173,2]
[366264859,1750165850044,-424.33660407,0.00024173,2]
[366264860,1750165850053,-500.0,0.00024173,2]
[366264861,1750165850063,-600.0,0.00024173,2]
[366264862,1750165850072,-500.0,0.00024173,2]
[366264863,1750165850081,-500.0,0.00024173,2]
[366264864,1750165850091,-500.0,0.00024173,2]
[366264865,1750165850101,-445.06682085,0.00024176,10]
[366264866,1750165850110,-3000.0,0.0002418,2]
[366264867,1750165850120,-50604.39340948,0.0002419,2]
[366264868,1750165850130,-3000.0,0.0002419,2]
[366264869,1750165850139,-151.0,0.0002419,7]
[366264870,1750165850150,-151.0,0.0002419,7]
[366264871,1750165850159,-278.915758,0.0002419,7]
[366264872,1750165850168,-151.0,0.0002419,7]
[366264873,1750165850178,-151.0,0.0002419,7]
[366264874,1750165850187,-14433.85412417,0.00024191,2]
[366264875,1750165850197,-33008.27595317,0.00024191,2]
[366264876,1750165850207,-414.06260331,0.00024191,6]
[366264877,1750165850217,-460.0,0.00024191,6]
[366264878,1750165850227,-460.0,0.00024191,6]
[366264879,1750165850237,-460.0,0.00024191,6]
[366264880,1750165850246,-1199.91,0.00024191,6]
[366264881,1750165850257,-460.0,0.00024191,6]
[366264882,1750165850266,-460.0,0.00024191,6]
[366264883,1750165850275,-460.0,0.00024191,6]
[366264884,1750165850285,-460.0,0.00024191,6]
[366264885,1750165850295,-460.0,0.00024191,6]
[366264886,1750165850304,-240.0,0.00024191,6]
[366264887,1750165850314,-582.3327829,0.00024191,6]
[366264888,1750165850324,-460.0,0.00024191,6]
[366264889,1750165850334,-482.57331536,0.00024191,6]
[366264890,1750165850343,-460.0,0.00024191,6]
[366264891,1750165850352,-460.0,0.00024191,6]
[366264892,1750165850362,-460.0,0.00024191,6]
[366264893,1750165850372,-1136.55,0.00024191,6]
[366264894,1750165850381,-460.0,0.00024191,6]
[366264895,1750165850391,-290.0,0.00024191,6]
[366264896,1750165850401,-380.0,0.00024191,6]
[366264897,1750165850411,-460.0,0.00024191,6]
[366264898,1750165850420,-460.0,0.00024191,6]
[366264899,1750165850430,-460.0,0.00024191,6]
[366264900,1750165850440,-460.0,0.00024191,6]
[366264901,1750165850450,-460.0,0.00024191,6]
[366264902,1750165850459,-460.0,0.00024191,6]
[366264903,1750165850469,-460.0,0.00024191,6]
[366264904,1750165850479,-460.0,0.00024191,6]
[366264905,1750165850488,-460.0,0.00024191,6]
[366264906,1750165850498,-460.0,0.00024191,6]
[366264907,1750165850508,-1653.26,0.00024191,2]
[366264908,1750165850518,-417.06430385,0.00024191,6]
[366264909,1750165850528,-460.0,0.00024191,6]
[366264910,1750165850537,-460.0,0.00024191,6]
[366264911,1750165850547,-878.72,0.00024191,6]
[366264912,1750165850557,-460.0,0.00024191,6]
[366264913,1750165850566,-460.0,0.00024191,6]
[366264914,1750165850575,-473.31251349,0.00024191,6]
[366264915,1750165850585,-257.56767647,0.00024191,6]
[366264916,1750165850595,-460.0,0.00024191,6]
[366264917,1750165850604,-460.0,0.00024191,6]
[366264918,1750165850614,-151.0,0.00024191,7]
[366264919,1750165850624,-370.0,0.00024191,6]
[366264920,1750165850635,-154.827955,0.00024191,7]
[366264921,1750165850645,-460.0,0.00024191,6]
[366264922,1750165850655,-460.0,0.00024191,6]
[366264923,1750165850665,-460.0,0.00024191,6]
[366264924,1750165850674,-422.33935742,0.00024191,6]
[366264925,1750165850684,-460.0,0.00024191,6]
[366264926,1750165850694,-460.0,0.00024191,6]
[366264927,1750165850705,-151.0,0.00024191,7]
[366264928,1750165850714,-151.0,0.00024191,7]
[366264929,1750165850724,-151.684097,0.00024191,7]
[366264930,1750165850734,-460.0,0.00024191,6]
[366264931,1750165850743,-1304.72,0.00024191,6]
[366264932,1750165850753,-460.0,0.00024191,6]
[366264933,1750165850763,-152.922554,0.00024191,7]
[366264934,1750165850774,-224.78070243,0.00024191,6]
[366264935,1750165850784,-460.0,0.00024191,6]
[366264936,1750165850794,-151.0,0.00024191,7]
[366264937,1750165850804,-460.0,0.00024191,6]
[366264938,1750165850813,-153.78781,0.00024191,7]
[366264939,1750165850823,-151.0,0.00024191,7]
[366264940,1750165850833,-460.0,0.00024191,6]
[366264941,1750165850849,-565.87161222,0.00024191,6]
[366264942,1750165850859,-460.0,0.00024191,6]
[366264943,1750165850869,-279.60493711,0.00024191,6]
[366264944,1750165850879,-151.0,0.00024191,7]
[366264945,1750165850888,-152.685085,0.00024191,7]
[366264946,1750165850898,-460.0,0.00024191,6]
[366264947,1750165850907,-241.73778576,0.00024191,6]
[366264948,1750165850917,-460.0,0.00024191,6]
[366264949,1750165850926,-155.313187,0.00024191,7]
[366264950,1750165850936,-151.0,0.00024191,7]
[366264951,1750165850945,-460.0,0.00024191,6]
[366264952,1750165850954,-460.0,0.00024191,6]
[366264953,1750165850963,-460.0,0.00024191,6]
[366264954,1750165850972,-151.0,0.00024191,7]
[366264955,1750165850981,-515.48,0.00024191,6]
[366264956,1750165850990,-222.224113,0.00024191,7]
[366264957,1750165850999,-222.224113,0.00024191,7]
[366264958,1750165851008,-460.0,0.00024191,6]
[366264959,1750165851017,-7113.65,0.00024191,6]
[366264960,1750165851027,-475.14110647,0.00024191,6]
[366264961,1750165851036,-1801.7,0.00024191,6]
[366264962,1750165851045,-690.5,0.00024191,6]
[366264963,1750165851055,-151.0,0.00024191,7]
[366264964,1750165851065,-151.0,0.00024191,7]
[366264965,1750165851074,-239.15539767,0.00024191,6]
[366264966,1750165851083,-460.0,0.00024191,6]
[366264967,1750165851093,-460.0,0.00024191,6]
[366264968,1750165851102,-460.0,0.00024191,6]
[366264969,1750165851112,-151.0,0.00024191,7]
[366264970,1750165851121,-460.0,0.00024191,6]
[366264971,1750165851131,-491.11695433,0.00024191,6]
[366264972,1750165851140,-151.0,0.00024191,7]
[366264973,1750165851150,-460.0,0.00024191,6]
[366264974,1750165851160,-2451.9,0.00024191,6]
[366264975,1750165851169,-226.885135,0.00024191,7]
[366264976,1750165851179,-460.0,0.00024191,6]
[366264977,1750165851189,-226.885135,0.00024191,7]
[366264978,1750165851202,-460.0,0.00024191,6]
[366264979,1750165851211,-469.38328801,0.00024191,6]
[366264980,1750165851221,-367.09890554,0.00024191,6]
[366264981,1750165851230,-428.29244261,0.00024191,6]
[366264982,1750165851240,-1127.69,0.00024191,6]
[366264983,1750165851250,-975.09,0.00024191,6]
[366264984,1750165851260,-460.0,0.00024191,6]
[366264985,1750165851269,-151.0,0.00024191,7]
[366264986,1750165851280,-460.0,0.00024191,6]
[366264987,1750165851289,-460.0,0.00024191,6]
[366264988,1750165851299,-706.94,0.00024191,6]
[366264989,1750165851309,-460.0,0.00024191,6]
[366264990,1750165851319,-331.64073635,0.00024191,6]
[366264991,1750165851328,-460.0,0.00024191,6]
[366264992,1750165851338,-151.0,0.00024191,7]
[366264993,1750165851349,-496.04,0.00024191,6]
[366264994,1750165851358,-294.425277,0.00024191,7]
[366264995,1750165851368,-848.76,0.00024191,6]
[366264996,1750165851377,-1401.3,0.00024191,6]
[366264997,1750165851387,-1042.16,0.00024191,6]
[366264998,1750165851396,-521.09,0.00024191,6]
[366264999,1750165851406,-460.0,0.00024191,6]
[366265000,1750165851415,-6005.6,0.00024191,6]
[366265001,1750165851425,-460.0,0.00024191,6]
[366265002,1750165851435,-4967.53,0.00024191,6]
[366265003,1750165851444,-713.33,0.00024191,6]
[366265004,1750165851454,-1612.56,0.00024191,6]
[366265005,1750165851464,-460.0,0.00024191,6]
[366265006,1750165851473,-460.0,0.00024191,6]
[366265007,1750165851483,-151.0,0.00024191,7]
[366265008,1750165851493,-5766.87,0.00024191,6]
[366265009,1750165851502,-1417.43,0.00024191,6]
[366265010,1750165851512,-460.0,0.00024191,6]
[366265011,1750165851521,-460.0,0.00024191,6]
[366265012,1750165851531,-460.0,0.00024191,6]
[366265013,1750165851541,-440.95849863,0.00024191,6]
[366265014,1750165851551,-1181.76,0.00024191,6]
[366265015,1750165851562,-460.0,0.00024191,6]
[366265016,1750165851657,-460.0,0.00024191,6]
[366265017,1750165851669,-151.0,0.00024191,7]
[366265018,1750165851679,-2284.79,0.00024191,6]
[366265019,1750165851689,-669.9,0.00024191,6]
[366265020,1750165851698,-460.0,0.00024191,6]
[366265021,1750165851708,-1703.81,0.00024191,6]
[366265022,1750165851719,-460.0,0.00024191,6]
[366265023,1750165851729,-460.0,0.00024191,6]
[366265024,1750165851739,-2229.99,0.00024191,6]
[366265025,1750165851750,-358.55167062,0.00024191,6]
[366265026,1750165851759,-900.42,0.00024191,6]
[366265027,1750165851769,-460.0,0.00024191,6]
[366265028,1750165851778,-2189.19,0.00024191,6]
[366265029,1750165851788,-460.0,0.00024191,6]
[366265030,1750165851797,-601.12,0.00024191,6]
[366265031,1750165851808,-202.168273,0.00024191,7]
[366265032,1750165851817,-460.0,0.00024191,6]
[366265033,1750165851827,-202.168273,0.00024191,7]
[366265034,1750165851836,-460.0,0.00024191,6]
[366265035,1750165851845,-645.19,0.00024191,6]
[366265036,1750165851855,-918.85,0.00024191,6]
[366265037,1750165851864,-460.0,0.00024191,6]
[366265038,1750165851874,-460.0,0.00024191,6]
[366265039,1750165851883,-460.0,0.00024191,6]
[366265040,1750165851892,-460.0,0.00024191,6]
[366265041,1750165851902,-862.99,0.00024191,6]
[366265042,1750165851911,-1155.02,0.00024191,6]
[366265043,1750165851921,-460.0,0.00024191,6]
[366265044,1750165851931,-6023.89,0.00024191,6]
[366265045,1750165851940,-460.0,0.00024191,6]
[366265046,1750165851950,-1800.7,0.00024191,6]
[366265047,1750165851960,-469.35,0.00024191,6]
[366265048,1750165851969,-160.949276,0.00024191,2]
[366265049,1750165851978,-756.44,0.00024191,6]
[366265050,1750165851988,-460.0,0.00024191,6]
[366265051,1750165851998,-160.949276,0.00024191,2]
[366265052,1750165852007,-1375.04,0.00024191,6]
[366265053,1750165852016,-347.09856154,0.00024191,6]
[366265054,1750165852026,-460.0,0.00024191,6]
[366265055,1750165852035,-460.0,0.00024191,6]
[366265056,1750165852045,-585.43,0.00024191,6]
[366265057,1750165852054,-460.0,0.00024191,6]
[366265058,1750165852063,-858.12,0.00024191,6]
[366265059,1750165852073,-2895.33,0.00024191,6]
[366265060,1750165852082,-460.0,0.00024191,6]
[366265061,1750165852092,-151.0,0.00024191,7]
[366265062,1750165852101,-2033.31,0.00024191,6]
[366265063,1750165852111,-5921.4,0.00024191,6]
[366265064,1750165852120,-151.0,0.00024191,7]
[366265065,1750165852130,-4551.35,0.00024191,6]
[366265066,1750165852139,-503.91,0.00024191,6]
[366265067,1750165852149,-887.03,0.00024191,6]
[366265068,1750165852158,-1365.39,0.00024191,6]
[366265069,1750165852167,-754.37,0.00024191,6]
[366265070,1750165852177,-460.0,0.00024191,6]
[366265071,1750165852186,-608.13,0.00024191,6]
[366265072,1750165852197,-460.0,0.00024191,6]
[366265073,1750165852206,-320.39405684,0.00024191,6]
[366265074,1750165852215,-4372.84,0.00024191,6]
[366265075,1750165852225,-1021.85,0.00024191,6]
[366265076,1750165852234,-1222.5,0.00024191,6]
[366265077,1750165852244,-460.0,0.00024191,6]
[366265078,1750165852254,-460.0,0.00024191,6]
[366265079,1750165852263,-460.0,0.00024191,6]
[366265080,1750165852272,-1471.68,0.00024191,2]
[366265081,1750165852282,-363.20001686,0.00024191,6]
[366265082,1750165852291,-6383.11,0.00024191,6]
[366265083,1750165852301,-2221.85,0.00024191,6]
[366265084,1750165852311,-1396.5,0.000242,7]
[366265085,1750165852320,-3000.0,0.000242,2]
[366265086,1750165852330,-127885.07,0.000242,2]
[366265087,1750165852339,-156.949979,0.000242,7]
[366265088,1750165852349,-151.0,0.000242,7]
[366265089,1750165852358,-699.0,0.000242,2]
[366265090,1750165852368,-161.7344,0.000242,7]
[366265091,1750165852377,-185.951074,0.000242,7]
[366265092,1750165852387,-3000.0,0.0002421,2]
[366265093,1750165852397,-151.0,0.0002421,7]
[366265094,1750165852407,-151.0,0.0002421,7]
[366265095,1750165852416,-151.0,0.0002421,7]
[366265096,1750165852426,-151.0,0.0002421,7]
[366265097,1750165852435,-3332.09407546,0.00024216,2]
[366265098,1750165852445,-270.15505127,0.00024219,6]
[366265099,1750165852456,-460.0,0.00024219,6]
[366265100,1750165852466,-460.0,0.00024219,6]
[366265101,1750165852475,-1199.91,0.00024219,6]
[366265102,1750165852485,-460.0,0.00024219,6]
[366265103,1750165852495,-460.0,0.00024219,6]
[366265104,1750165852504,-460.0,0.00024219,6]
[366265105,1750165852514,-460.0,0.00024219,6]
[366265106,1750165852524,-460.0,0.00024219,6]
[366265107,1750165852534,-460.0,0.00024219,6]
[366265108,1750165852544,-460.0,0.00024219,6]
[366265109,1750165852554,-1136.55,0.00024219,6]
[366265110,1750165852564,-460.0,0.00024219,6]
[366265111,1750165852573,-361.19010149,0.00024219,6]
[366265112,1750165852583,-360.0,0.00024219,6]
[366265113,1750165852593,-460.0,0.00024219,6]
[366265114,1750165852603,-301.29573145,0.00024219,6]
[366265115,1750165852613,-460.0,0.00024219,6]
[366265116,1750165852623,-460.0,0.00024219,6]
[366265117,1750165852634,-460.0,0.00024219,6]
[366265118,1750165852644,-460.0,0.00024219,6]
[366265119,1750165852654,-312.97472555,0.00024219,6]
[366265120,1750165852664,-1653.26,0.00024219,2]
[366265121,1750165852674,-373.0762717,0.00024219,6]
[366265122,1750165852683,-460.0,0.00024219,6]
[366265123,1750165852693,-878.72,0.00024219,6]
[366265124,1750165852703,-460.0,0.00024219,6]
[366265125,1750165852712,-460.0,0.00024219,6]
[366265126,1750165852722,-460.0,0.00024219,6]
[366265127,1750165852732,-460.0,0.00024219,6]
[366265128,1750165852742,-460.0,0.00024219,6]
[366265129,1750165852751,-460.0,0.00024219,6]
[366265130,1750165852761,-172.6003737,0.00024219,6]
[366265131,1750165852771,-151.0,0.00024219,7]
[366265132,1750165852780,-460.0,0.00024219,6]
[366265133,1750165852790,-1304.72,0.00024219,6]
[366265134,1750165852800,-460.0,0.00024219,6]
[366265135,1750165852810,-460.0,0.00024219,6]
[366265136,1750165852819,-163.249263,0.00024219,7]
[366265137,1750165852829,-460.0,0.00024219,6]
[366265138,1750165852842,-151.0,0.00024219,7]
[366265139,1750165852852,-460.0,0.00024219,6]
[366265140,1750165852862,-460.0,0.00024219,6]
[366265141,1750165852872,-460.0,0.00024219,6]
[366265142,1750165852881,-151.0,0.00024219,7]
[366265143,1750165852891,-447.35408526,0.00024219,6]
[366265144,1750165852901,-151.0,0.00024219,7]
[366265145,1750165852911,-460.0,0.00024219,6]
[366265146,1750165852922,-153.52254964,0.00024219,6]
[366265147,1750165852932,-515.48,0.00024219,6]
[366265148,1750165852941,-222.224113,0.00024219,7]
[366265149,1750165852951,-222.224113,0.00024219,7]
[366265150,1750165852961,-460.0,0.00024219,6]
[366265151,1750165852970,-7113.65,0.00024219,6]
[366265152,1750165852979,-1801.7,0.00024219,6]
[366265153,1750165852989,-690.5,0.00024219,6]
[366265154,1750165852998,-151.0,0.00024219,7]
[366265155,1750165853008,-151.0,0.00024219,7]
[366265156,1750165853018,-460.0,0.00024219,6]
[366265157,1750165853027,-460.0,0.00024219,6]
[366265158,1750165853037,-460.0,0.00024219,6]
[366265159,1750165853046,-151.0,0.00024219,7]
[366265160,1750165853056,-460.0,0.00024219,6]
[366265161,1750165853066,-151.0,0.00024219,7]
[366265162,1750165853075,-460.0,0.00024219,6]
[366265163,1750165853084,-2451.9,0.00024219,6]
[366265164,1750165853093,-226.885135,0.00024219,7]
[366265165,1750165853103,-440.0,0.00024219,6]
[366265166,1750165853200,-226.885135,0.00024219,7]
[366265167,1750165853210,-460.0,0.00024219,6]
[366265168,1750165853220,-1127.69,0.00024219,6]
[366265169,1750165853230,-975.09,0.00024219,6]
[366265170,1750165853240,-460.0,0.00024219,6]
[366265171,1750165853250,-154.168404,0.00024219,7]
[366265172,1750165853259,-296.85291492,0.00024219,6]
[366265173,1750165853269,-460.0,0.00024219,6]
[366265174,1750165853279,-706.94,0.00024219,6]
[366265175,1750165853289,-460.0,0.00024219,6]
[366265176,1750165853299,-460.0,0.00024219,6]
[366265177,1750165853308,-151.0,0.00024219,7]
[366265178,1750165853318,-496.04,0.00024219,6]
[366265179,1750165853328,-848.76,0.00024219,6]
[366265180,1750165853337,-1401.3,0.00024219,6]
[366265181,1750165853347,-1042.16,0.00024219,6]
[366265182,1750165853356,-521.09,0.00024219,6]
[366265183,1750165853367,-312.43131768,0.00024219,6]
[366265184,1750165853376,-6005.6,0.00024219,6]
[366265185,1750165853387,-460.0,0.00024219,6]
[366265186,1750165853397,-4967.53,0.00024219,6]
[366265187,1750165853406,-713.33,0.00024219,6]
[366265188,1750165853416,-1612.56,0.00024219,6]
[366265189,1750165853425,-460.0,0.00024219,6]
[366265190,1750165853435,-460.0,0.00024219,6]
[366265191,1750165853444,-151.0,0.00024219,7]
[366265192,1750165853454,-5766.87,0.00024219,6]
[366265193,1750165853464,-1417.43,0.00024219,6]
[366265194,1750165853473,-460.0,0.00024219,6]
[366265195,1750165853482,-460.0,0.00024219,6]
[366265196,1750165853491,-460.0,0.00024219,6]
[366265197,1750165853501,-1181.76,0.00024219,6]
[366265198,1750165853511,-460.0,0.00024219,6]
[366265199,1750165853521,-460.0,0.00024219,6]
[366265200,1750165853530,-151.0,0.00024219,7]
[366265201,1750165853540,-2284.79,0.00024219,6]
[366265202,1750165853550,-669.9,0.00024219,6]
[366265203,1750165853559,-1703.81,0.00024219,6]
[366265204,1750165853569,-460.0,0.00024219,6]
[366265205,1750165853578,-460.0,0.00024219,6]
[366265206,1750165853587,-2229.99,0.00024219,6]
[366265207,1750165853597,-900.42,0.00024219,6]
[366265208,1750165853607,-460.0,0.00024219,6]
[366265209,1750165853616,-2189.19,0.00024219,6]
[366265210,1750165853625,-460.0,0.00024219,6]
[366265211,1750165853635,-601.12,0.00024219,6]
[366265212,1750165853644,-202.168273,0.00024219,7]
[366265213,1750165853654,-460.0,0.00024219,6]
[366265214,1750165853664,-202.168273,0.00024219,7]
[366265215,1750165853674,-645.19,0.00024219,6]
[366265216,1750165853683,-918.85,0.00024219,6]
[366265217,1750165853693,-460.0,0.00024219,6]
[366265218,1750165853703,-320.0,0.00024219,6]
[366265219,1750165853713,-460.0,0.00024219,6]
[366265220,1750165853722,-460.0,0.00024219,6]
[366265221,1750165853732,-862.99,0.00024219,6]
[366265222,1750165853741,-1155.02,0.00024219,6]
[366265223,1750165853751,-460.0,0.00024219,6]
[366265224,1750165853761,-6023.89,0.00024219,6]
[366265225,1750165853770,-460.0,0.00024219,6]
[366265226,1750165853780,-1800.7,0.00024219,6]
[366265227,1750165853790,-469.35,0.00024219,6]
[366265228,1750165853800,-160.949276,0.00024219,2]
[366265229,1750165853810,-756.44,0.00024219,6]
[366265230,1750165853819,-460.0,0.00024219,6]
[366265231,1750165853828,-160.949276,0.00024219,2]
[366265232,1750165853838,-1375.04,0.00024219,6]
[366265233,1750165853847,-460.0,0.00024219,6]
[366265234,1750165853857,-340.0,0.00024219,6]
[366265235,1750165853867,-585.43,0.00024219,6]
[366265236,1750165853876,-363.53,0.00024219,6]
[366265237,1750165853886,-2895.33,0.00024219,6]
[366265238,1750165853896,-858.12,0.00024219,6]
[366265239,1750165853905,-460.0,0.00024219,6]
[366265240,1750165853914,-151.0,0.00024219,7]
[366265241,1750165853924,-2033.31,0.00024219,6]
[366265242,1750165853933,-5921.4,0.00024219,6]
[366265243,1750165853942,-151.0,0.00024219,7]
[366265244,1750165853951,-4551.35,0.00024219,6]
[366265245,1750165853961,-503.91,0.00024219,6]
[366265246,1750165853971,-887.03,0.00024219,6]
[366265247,1750165853980,-1365.39,0.00024219,6]
[366265248,1750165853990,-754.37,0.00024219,6]
[366265249,1750165853999,-450.60226109,0.00024219,6]
[366265250,1750165854008,-608.13,0.00024219,6]
[366265251,1750165854018,-460.0,0.00024219,6]
[366265252,1750165854027,-4372.84,0.00024219,6]
[366265253,1750165854037,-1021.85,0.00024219,6]
[366265254,1750165854046,-1222.5,0.00024219,6]
[366265255,1750165854056,-460.0,0.00024219,6]
[366265256,1750165854065,-288.59003082,0.00024219,6]
[366265257,1750165854074,-460.0,0.00024219,6]
[366265258,1750165854083,-1471.68,0.00024219,2]
[366265259,1750165854092,-6383.11,0.00024219,6]
[366265260,1750165854102,-2221.85,0.00024219,6]
[366265261,1750165854111,-153.0,0.0002422,2]
[366265262,1750165854121,-153.0,0.0002422,2]
[366265263,1750165854130,-153.0,0.0002422,2]
[366265264,1750165854140,-153.0,0.0002422,2]
[366265265,1750165854150,-3000.0,0.0002422,2]
[366265266,1750165854159,-153.0,0.0002422,2]
[366265267,1750165854168,-153.0,0.0002422,2]
[366265268,1750165854177,-153.0,0.00024221,2]
[366265269,1750165854186,-153.0,0.00024221,2]
[366265270,1750165854195,-153.0,0.00024221,2]
[366265271,1750165854205,-153.0,0.00024221,2]
[366265272,1750165854214,-153.0,0.00024221,2]
[366265273,1750165854223,-153.0,0.00024221,2]
[366265274,1750165854232,-153.0,0.00024221,2]
[366265275,1750165854241,-153.0,0.00024222,2]
[366265276,1750165854251,-153.0,0.00024222,2]
[366265277,1750165854260,-153.0,0.00024222,2]
[366265278,1750165854269,-153.0,0.00024222,2]
[366265279,1750165854278,-153.0,0.00024222,2]
[366265280,1750165854287,-153.0,0.00024222,2]